Cogmind - Beta 14 @@@ ROGUE MODE // 2024.09.24 @ 01:52:36 Player: Destravous Result: Destroyed by D-53 Grenadier with Mini Grenade Launcher Performance ------------- Evolutions (0) 0 Regions Visited (4) 800 Robots Destroyed (14) 70 Value Destroyed (302) 302 Prototype IDs (0) 0 Alien Tech Used (0) 0 Bonus (0) 0 TOTAL SCORE: 1172 Bonus ------- None Cogmind --------- Core Integrity 0/250 Matter 231/300 Energy 240/250 System Corruption 0% Temperature Cool (50) Movement Walking (400) Ox4 Location -9/Mines Parts ------- > --- POWER (1) -------- Ion Engine > --- PROPULSION (2) --- Aluminum Leg Aluminum Leg > --- UTILITY (2) ------ Huge Storage Unit Medium Armor Plating > --- WEAPON (2) ------- Rocket Launcher > --- INVENTORY (25) --- Light Ion Engine Compact Wheel Compact Wheel Flight Unit Flight Unit Flight Unit Medium Battery (150) Large Battery (200) Large Battery (200) Large Battery (200) Small Matter Pod (50) Large Matter Pod (98) Weapon Shielding Medium Armor Plating Medium Armor Plating Medium Armor Plating Bomb Drone Bay Small Laser Light Assault Rifle Light Assault Rifle Mining Laser Plasma Flamer Peak State ------------ > --- POWER ------------ Ion Engine > --- PROPULSION ------- Aluminum Leg Aluminum Leg > --- UTILITY ---------- Huge Storage Unit Targeting Computer > --- WEAPON ----------- Medium Laser Plasma Flamer > --- INVENTORY -------- Light Ion Engine Compact Wheel Compact Wheel Flight Unit Flight Unit Flight Unit Medium Battery Small Matter Pod Weapon Shielding Medium Armor Plating Medium Armor Plating Medium Armor Plating Medium Armor Plating Bomb Drone Bay Small Laser Light Assault Rifle Light Assault Rifle [Rating: 14] Favorites ----------- Power Ion Engine Engine Ion Engine Propulsion Aluminum Leg Treads Light Treads Leg Aluminum Leg Utility Huge Storage Unit Storage Huge Storage Unit Processor Targeting Computer Protection Medium Armor Plating Weapon Medium Laser Energy Gun Medium Laser Ballistic Gun Light Assault Rifle Launcher Rocket Launcher Special Weapon Plasma Flamer Build | -11 -10 -10 -10 -9 ------- Run | Yrd Mat Min Exi Min Slots Evolved . | . . . . . Power . | . . . . . Propulsion . | . . . . . Utility . | . . . . . Weapon . | . . . . . Parts Attached 19 | . 9 7 . 3 Power 3 | . 1 2 . . Engine 3 | . 1 2 . . Core . | . . . . . Reactor . | . . . . . Propulsion 4 | . 2 2 . . Treads 2 | . 2 . . . Leg 2 | . . 2 . . Wheel . | . . . . . Hover . | . . . . . Flight . | . . . . . Utility 5 | . 3 1 . 1 Device . | . . . . . Storage 3 | . 3 . . . Processor 1 | . . 1 . . Hackware . | . . . . . Protection 1 | . . . . 1 Artifact . | . . . . . Weapon 7 | . 3 2 . 2 Energy Gun 3 | . 3 . . . Energy Cannon . | . . . . . Ballistic Gun 1 | . . 1 . . Ballistic Cannon . | . . . . . Launcher 1 | . . . . 1 Special Weapon 2 | . . 1 . 1 Impact Weapon . | . . . . . Slashing Weapon . | . . . . . Piercing Weapon . | . . . . . Special Melee Weapon . | . . . . . Unidentified Prototypes . | . . . . . Parts Lost 6 | . 1 4 . 1 Power 2 | . 1 1 . . Propulsion 2 | . . 2 . . Utility . | . . . . . Weapon 2 | . . 1 . 1 Highest Loss Streak 4 | . 1 4 . 1 To Critical Strikes . | . . . . . Average Slot Usage (%) 99 | . 97 97 100 99 Engine 13 | . 14 13 14 14 Treads 5 | . 20 8 . . Leg 22 | . 7 17 28 28 Storage 16 | . 25 18 14 14 Processor 10 | . . 9 14 14 Energy Gun 17 | . 27 18 14 13 Ballistic Gun 1 | . . 8 . . Special Weapon 9 | . . 1 14 12 Peak Build Rating 14 | 6 8 14 14 14 Average Rating 11 | 6 7 9 14 11 On Entrance 9 | 6 6 8 14 14 Naked Turns . | . . . . . Heaviest Build 91 | 10 91 91 90 90 Greatest Support 40 | 20 40 40 20 20 Greatest Overweight (x) 4 | . 2 4 4 4 Average Overweight (x) 3 | . . 3 4 4 Largest Inventory Capacity 25 | 8 25 25 25 25 Average Capacity 24 | 8 20 25 25 25 Most Carried 24 | 6 14 18 22 24 Average Carried 17 | 6 10 15 19 23 Final Capacity 25 | 8 25 25 25 25 Final Carried 23 | 6 14 18 22 23 Class Distribution -------------------- 100% | Mutant Dominant Class ---------------- Mutant | -10/Materials Mutant | -10/Mines Mutant | -10/Exiles Mutant | -9/Mines Resources | -11 -10 -10 -10 -9 ----------- Run | Yrd Mat Min Exi Min Matter Collected 470 | 200 171 47 52 . Remotely . | . . . . . Salvage Created 380 | . 300 47 . 33 Parts 18 | . 12 4 . 2 Haulers Intercepted . | . . . . . Recyclers Shooed . | . . . . . Parts Field Recycled . | . . . . . Retrieved Matter . | . . . . . Parts Self-Destructed . | . . . . . Prevented . | . . . . . Kills | -11 -10 -10 -10 -9 ------- Run | Yrd Mat Min Exi Min Combat Hostiles Destroyed 14 | . 10 3 . 1 Guns 13 | . 10 3 . . AOE 1 | . . . . 1 Classes Destroyed 3 | . 2 . . 1 Swarmer 9 | . 6 3 . . Grunt 4 | . 4 . . . Demolisher 1 | . . . . 1 Best Kill Streak 3 | . 3 2 . 1 Combat Bots Only 3 | . 3 2 . 1 Max Kills in Single Turn 2 | . 2 1 . 1 Gunslinging . | . . . . . Exploded 1 | . . . . 1 Melee . | . . . . . Uniques/NPCs Destroyed . | . . . . . Combat | -11 -10 -10 -10 -9 -------- Run | Yrd Mat Min Exi Min Hostile Shots Fired 104 | . 56 41 . 7 Missed 17 | . 11 6 . . Damage Taken 1019 | . 468 280 . 271 Core 254 | . 91 72 . 91 Absorbed by Shields . | . . . . . Regen/Repaired (Parts) 10 | . 10 . . . Core Remaining (%) 100 | 100 . . . . Volleys Fired 66 | . 32 24 6 4 Largest 2 | . 2 2 2 2 Hottest 150 | . 100 100 150 83 Shots Fired 132 | . 64 48 12 8 Gun 122 | . 64 48 6 4 Cannon . | . . . . . Launcher 4 | . . . . 4 Special 6 | . . . 6 . Kinetic 13 | . . 13 . . Thermal 115 | . 64 35 12 4 Explosive 4 | . . . . 4 Electromagnetic . | . . . . . Robot Hit Streak 10 | . 10 2 . 3 Robot Miss Streak 18 | . 4 18 . 1 Penetration Max . | . . . . . Secondary Targets . | . . . . . Shots Hit Robots 46 | . 32 9 . 5 Core Hits 25 | . 16 4 . 5 Critical Kills . | . . . . . Critical Parts Destroyed . | . . . . . Critical Strikes 2 | . 2 . . . Burn 2 | . 2 . . . Melee Attacks . | . . . . . Impact . | . . . . . Slashing . | . . . . . Piercing . | . . . . . Sneak Attacks . | . . . . . Combat Hostiles . | . . . . . Follow-up Attacks . | . . . . . Damage Inflicted 590 | . 410 104 . 76 Guns 539 | . 410 104 . 25 Cannons . | . . . . . Explosions 51 | . . . . 51 Melee . | . . . . . Ramming . | . . . . . Kinetic 27 | . . 27 . . Thermal 512 | . 410 77 . 25 Explosive 51 | . . . . 51 Electromagnetic . | . . . . . Impact . | . . . . . Slashing . | . . . . . Piercing . | . . . . . Highest Corruption . | . . . . . Average Corruption . | . . . . . Corruption Purged . | . . . . . Corruption Blocked . | . . . . . Overload Shots . | . . . . . Overflow Damage . | . . . . . Projectiles . | . . . . . Explosions . | . . . . . Melee . | . . . . . Knockbacks . | . . . . . Impact . | . . . . . Kinetic . | . . . . . Secondary . | . . . . . Self-Inflicted Damage . | . . . . . Shots . | . . . . . Rammed . | . . . . . Targets Rammed . | . . . . . Kicked . | . . . . . Crushed . | . . . . . Highest Temperature 414 | . 273 414 102 84 Average Temperature 133 | . 77 284 51 47 Received Heat Transfer 168 | . 168 . . . Effects 6 | . . 6 . . Shutdowns 4 | . . 4 . . Energy Bleed 1 | . . 1 . . Matter Decay 1 | . . 1 . . Siege Activations . | . . . . . Robots Corrupted . | . . . . . Combat Hostiles . | . . . . . Parts Fried . | . . . . . Impact Corruptions . | . . . . . Robots Melted . | . . . . . Combat Hostiles . | . . . . . Parts Melted 5 | . 5 . . . Heat Transferred 1665 | . 1369 222 . 74 Parts Sabotaged . | . . . . . Parts Stolen . | . . . . . Parts Stripped . | . . . . . Power Chain Reactions . | . . . . . Alert | -11 -10 -10 -10 -9 ------- Run | Yrd Mat Min Exi Min Peak Influence 170 | . 170 96 . 46 Initial 66 | . . 66 . . Average 57 | . 84 44 . 2 Maximum Alert Level . | . . . . . Low Security (%) 100 | 100 100 100 . 100 Level 1 . | . . . . . Level 2 . | . . . . . Level 3 . | . . . . . Level 4 . | . . . . . Level 5 . | . . . . . High Security . | . . . . . Max Security . | . . . . . Squads Dispatched 1 | . 1 . . . Investigation . | . . . . . Extermination . | . . . . . Reinforcement 1 | . 1 . . . Assault . | . . . . . Garrison . | . . . . . Intercept . | . . . . . Searches Triggered . | . . . . . Construction Impeded . | . . . . . Haulers Reinforced . | . . . . . Active Scanning Responses . | . . . . . Cargo Convoy Interrupts . | . . . . . Stealth | -11 -10 -10 -10 -9 --------- Run | Yrd Mat Min Exi Min Distress Signals 2 | . 2 . . . Communications Jammed . | . . . . . Distress Signals . | . . . . . Times Spotted 22 | . 17 3 . 2 Peak Tracking Total 3 | . 3 3 . 2 Tactical Retreats 2 | . 2 . . . Traps | -11 -10 -10 -10 -9 ------- Run | Yrd Mat Min Exi Min Traps Triggered . | . . . . . Indirectly . | . . . . . Trap Hack Attempts . | . . . . . Triggered . | . . . . . Disarmed . | . . . . . Reprogrammed . | . . . . . Reused . | . . . . . Traps Extracted . | . . . . . Installed . | . . . . . Triggered . | . . . . . Machines | -11 -10 -10 -10 -9 ---------- Run | Yrd Mat Min Exi Min Machines Disabled 2 | . 1 . . 1 Max in Single Turn 1 | . 1 . . 1 Machines Repaired . | . . . . . Machines Dismantled . | . . . . . Machines Sabotaged . | . . . . . Overloaded Fab Kills . | . . . . . Hacking | -11 -10 -10 -10 -9 --------- Run | Yrd Mat Min Exi Min Machines Accessed 7 | . 2 1 4 . Terminals 1 | . 1 . . . Fabricators . | . . . . . Repair Stations 1 | . 1 . . . Recycling Units . | . . . . . Scanalyzers . | . . . . . Garrison Access . | . . . . . Total Hacks 8 | . 3 1 4 . Successful 7 | . 2 1 4 . Failed 1 | . 1 . . . Catastrophic 1 | . 1 . . . Database Lockouts . | . . . . . Manual 7 | . 3 . 4 . Terminals 1 | . 1 . . . Fabricators . | . . . . . Repair Stations 2 | . 2 . . . Recycling Units . | . . . . . Scanalyzers . | . . . . . Garrison Access . | . . . . . Terminal Hacks 5 | . . 1 4 . Record 4 | . . . 4 . Open Door 1 | . . 1 . . Fabricator Hacks . | . . . . . Repair Station Hacks 2 | . 2 . . . Scan Component 1 | . 1 . . . Repair 1 | . 1 . . . Recycling Unit Hacks . | . . . . . Scanalyzer . | . . . . . Garrison Access Hacks . | . . . . . Unauthorized Hacks . | . . . . . Terminals . | . . . . . Fabricators . | . . . . . Repair Stations . | . . . . . Recycling Units . | . . . . . Scanalyzers . | . . . . . Garrison Access . | . . . . . Data Cores Recovered . | . . . . . Used . | . . . . . Hacking Detections 3 | . 3 . . . Full Trace Events . | . . . . . Feedback Events . | . . . . . Feedback Blocked . | . . . . . Robot Schematics Acquired . | . . . . . Robots Built . | . . . . . Authchips . | . . . . . Time . | . . . . . Total Robot Build Rating . | . . . . . Part Schematics Acquired . | . . . . . Parts Built . | . . . . . Authchips . | . . . . . Time . | . . . . . Total Part Build Rating . | . . . . . Parts Repaired 1 | . 1 . . . Time 26 | . 26 . . . Parts Recycled . | . . . . . Recycled Matter . | . . . . . Retrieved Matter . | . . . . . Retrieved Components . | . . . . . Parts Scanalyzed . | . . . . . Part Schematics Acquired . | . . . . . Parts Damaged . | . . . . . Bothacking | -11 -10 -10 -10 -9 ------------ Run | Yrd Mat Min Exi Min Used RIF Installer . | . . . . . Robots Hacked . | . . . . . Non-combat . | . . . . . Combat . | . . . . . Robot Hacks Applied . | . . . . . Relay Couplers Released . | . . . . . Fabnet Peak Effective % . | . . . . . Robots Rewired . | . . . . . Allies Hacked . | . . . . . Hacks Repelled . | . . . . . Allies | -11 -10 -10 -10 -9 -------- Run | Yrd Mat Min Exi Min Total Allies 1 | . . . . 1 Largest Group 1 | . . . . 1 Highest-Rated Group 31 | . . . . 31 Highest-Rated Ally 31 | . . . . 31 Total Orders . | . . . . . Ally Attacks 7 | . . . . 7 Total Damage 62 | . . . . 62 Kills . | . . . . . Allies Corrupted . | . . . . . Allies Melted . | . . . . . Intel | -11 -10 -10 -10 -9 ------- Run | Yrd Mat Min Exi Min Robot Analysis Total . | . . . . . Derelict Logs Recovered 1 | . . 1 . . Drone Launches . | . . . . . Drone Recoveries . | . . . . . Exploration | -11 -10 -10 -10 -9 ------------- Run | Yrd Mat Min Exi Min Turns Passed 4281 | 3 775 696 2600 207 Spaces Moved 1146 | 3 289 164 643 47 Core . | . . . . . Treads 198 | . 142 56 . . Legs 948 | 3 147 108 643 47 Wheels . | . . . . . Hover . | . . . . . Flight . | . . . . . Fastest Speed 120 | 120 120 320 400 400 Average Speed 349 | 120 218 372 400 400 Slowest Speed 400 | 120 320 400 400 400 Overloaded Moves . | . . . . . Propulsion Burnouts . | . . . . . Robots Hopped . | . . . . . Cave-ins Triggered . | . . . . . Exploration Rate (%) 36 | 1 39 29 94 20 Regions Visited 4 Branch Regions 3 Pre-discovered Areas 1 | . . 1 . . Known Exits Taken . | . . . . . Unknown Exits Taken 4 | 1 1 1 1 . Scrap Searched 1 | . . 1 . . Spaces Dug . | . . . . . Terrain Destroyed 17 | . . . . 17 Melee . | . . . . . Projectile . | . . . . . AOE 17 | . . . . 17 Terrain Rammed . | . . . . . Walls Destroyed . | . . . . . Machines Disabled . | . . . . . Actions | -11 -10 -10 -10 -9 --------- Run | Yrd Mat Min Exi Min Total 1290 | 2 369 205 658 56 Wait 34 | . 26 2 6 . Move 1142 | 2 288 163 642 47 Hop . | . . . . . Pick Up 26 | . 12 8 4 2 Fast Attach . | . . . . . Attach 8 | . 3 5 . . Detach . | . . . . . Swap 11 | . 6 2 . 3 Drop 3 | . 2 1 . . Fire 66 | . 32 24 6 4 Melee . | . . . . . Ram . | . . . . . Kick . | . . . . . Crush . | . . . . . Escape Stasis . | . . . . . Rewire . | . . . . . Trap . | . . . . . Miscellaneous . | . . . . . Route ------- -11/Scrapyard -10/Materials -10/Mines (discovered 2 exits: [*Mat] / *Exi) -10/Exiles (discovered 2 exits: [*Min x2]) -9/Mines History --------- Turn | Location | Event 1 | -11/Scrapyard | Discovered new exit (range 3) 4 | -11/Scrapyard | Entered Materials 313 | -10/Materials | Build established: Mutant 467 | -10/Materials | Repaired Med. Laser 495 | -10/Materials | Discovered new exit (range 9) 779 | -10/Materials | Entered Mines 932 | -10/Mines | Discovered new exit (range 6) 1014 | -10/Mines | Core integrity fell below 50% 1039 | -10/Mines | Lost 4 parts (1p2n1w) 1089 | -10/Mines | A weapon hastily lodged in a ceiling crevice suddenly fell to the ground 1266 | -10/Mines | Learned location of Storage (-9) 1391 | -10/Mines | Found the Drone Emporium 1410 | -10/Mines | Found Prototype Device 1459 | -10/Mines | Deemed a non-threat by the Exiles lab entrance 1459 | -10/Mines | Discovered new exit (range 5) 1475 | -10/Mines | Entered Exiles 1475 | -10/Exiles | Found Exiles lab abandoned 1553 | -10/Exiles | Discovered new exit (range 15) 2918 | -10/Exiles | Discovered new exit (range 14) 4075 | -10/Exiles | Entered Mines 4078 | -9/Mines | Received a Mining Laser from a helpful Derelict 4165 | -9/Mines | Received a Rocket Launcher from a helpful Derelict 4252 | -9/Mines | Assembled infested the area 4275 | -9/Mines | Core integrity fell below 20% 4282 | -9/Mines | Destroyed by D-53 Grenadier with Mini Grenade Launcher Last Messages --------------- wall? Leave that to the mining laser wimps, I say!" 04165_ PM-JOZ(g): "Would you like a rocket launcher? I know I would if I were you, so I'm going to lend you mine." 04165_ PM-JOZ(g) slips back into the shadows. 04175_ K-01 Serf collects debris. 04186_ Acquired Rocket Launcher. 04189_ K-01 Serf collects debris. 04252_ ALERT: Infestation in the mines, dispatching Demolisher response squad. 04268_ C-30 ARC bursts open, deploying its payload. 04268_ D-53 Grenadier unfolds itself. 04268_ D-53 Grenadier suffers critical hit (Burn). 04271_ D-53 Grenadier destroyed. 04276_ SL-FYA(g) destroyed. 04278_ Med. Laser destroyed. 04280_ Discarded Targeting Computer. Map ----- +----------------------------------------------------+ | | | | | | | | | ?????????????????????????????????????????????????? | | ?????????????????????????????????????????????????? | | ?????????????????????????????????????????????????? | | ?????????????????????????????????????????????????? | | ???????????????#####?????????????????????????????? | | ??????????????## ##????????????????????????????? | | ?????????????## ##???????????????????????????? | | ?????????????# ##??????????????????????????? | | ??############ #??????????????????????????? | | ??# ##?????????????????????????? | | ??# ########## # #???????????? ????????????? | | ??# #????????# ## #??????????? ????????????? | | ??# #????????# #### ##?????????# ???????????? | | ?## ##???????# #??# #?????????# ????????????? | | ?# ##??????# #??# #???????## #?????????????? | | ## #?????? #??# #?????## #### ??????????? | | # #?????? ###??# ###### ??????????? | | #?????? ?????# # ?????????? | | ##?????# ?????# ?????????? | | #??????# ?????# d % ????????? | | #??????# ?????# % ????????? | | # #????? ?????### @ ! ????????? | | ## #????? ??????# ????????? | | ?# #????? ??????## ????????? | | ?## ##??????????????# ## ####?????????? | | ??####???????????????## # #???????????????? | | ??????????????????????# ##### #???????????????? | | ??????????????????????#=#????? ##???????????????? | | ??????????????????????#!#??????##????????????????? | | ??????????????????????#%#????????????????????????? | | ??????????????????????# ?????????????????????????? | | ??????????????????????? ?????????????????????????? | | ??????????????????????? ?????????????????????????? | | ??????????????????????? ?????????????????????????? | | ??????????????????????? ?????????????????????????? | | ??????????????????????? ?????????????????????????? | | ??????????????????????? ?????????????????????????? | | ?????????????????????????????????????????????????? | | ?????????????????????????????????????????????????? | | ?????????????????????????????????????????????????? | | ?????????????????????????????????????????????????? | | ?????????????????????????????????????????????????? | | ?????????????????????????????????????????????????? | | ?????????????????????????????????????????????????? | | ?????????????????????????????????????????????????? | | ?????????????????????????????????????????????????? | +----------------------------------------------------+ Best States ------------- Heat Dissipation 25 Energy Generation 10 Energy Capacity 400 Matter Stores 346 Matter Capacity 350 Sight Range 16 Terrain Scan Density 10 Evasion (%) 55 Targeting Accuracy 5 Recoil Reduction 2 Item Schematics ----------------- None Robot Schematics ------------------ None Fabricated ------------ Nothing Alien Tech Used ----------------- None Achievements -------------- None Challenges ------------ None Game ------ Seed PotentialTerrainMaul Manual? 0 Play Time 00:25:57 Cumulative 101.0 hours Start 2024.09.24 @ 01:26:40 End 2024.09.24 @ 01:52:36 Sessions 1 Manual Loads 0 Difficulty Rogue Special Mode None Game No. 70 Rogue 70 Adventurer 0 Explorer 0 Win Type - Total 2 Types 2/0/0/0/0/0/0/0/0 Lore% 23 Gallery% 44 Achievement% 32 Wizard Run 0 Options --------- Layout 1 ASCII 0 Keyboard 0 Movement Mouse Keybinds 0 Fullscreen 1 Font 24/Smallcaps Map View 50x35 Zoom Use 0% Tactical HUD 1 Map Filters NONE Filters NONE Steam 1 RUN: 8e3ba209-36d4-42bf-9554-e810d2d661c8